[Event "FIDE WCCC Open-12 2024"]
[Site "Montesilvano"]
[Date "2024.11.24"]
[Round "9.21"]
[White "Chen, Jun-Wei"]
[Black "Minga-Nagy, Abel Inti"]
[Result "1/2-1/2"]
[ECO "B22"]
[WhiteElo "1907"]
[BlackElo "2033"]
[Annotator "NA RC"]
[PlyCount "113"]
[EventDate "2024.11.18"]
[EventType "swiss"]
[EventCountry "ITA"]
[SourceTitle "playchess.com"]
[Source "ChessBase"]
[SourceQuality "1"]
[TimeControl "5400+30"]

1. e4 {[%emt 0:00:04]} c5 {[%emt 0:00:04]} 2. Nf3 {[%emt 0:00:08]} e6 {[%emt 0:00:05]} 3. c3 {[%emt 0:00:05]} d5 {[%emt 0:00:57]} 4. exd5 {[%emt 0:00:05]} Qxd5 {[%emt 0:00:53]} 5. d4 {[%emt 0:00:08]} Nf6 {[%emt 0:00:30]} 6. Na3 {[%emt 0:00:07]} cxd4 {[%emt 0:16:10]} 7. Nb5 {[%emt 0:00:17]} Na6 {[%emt 0:00:10]} 8. cxd4 {[%emt 0:01:52]} Bb4+ {[%emt 0:01:16]} 9. Nc3 {[%emt 0:02:27]} O-O {[%emt 0:03:32]} 10. Bd3 {[%emt 0:01:14]} Bxc3+ {[%emt 0:07:38]} 11. bxc3 {[%emt 0:00:06]} Bd7 {[%emt 0:01:57]} 12. Qe2 {[%emt 0:03:56]} Rac8 {[%emt 0:04:00]} 13. Bd2 {[%emt 0:01:54]} e5 {[%emt 0:08:57]} 14. dxe5 {[%emt 0:07:06]} Rfe8 {[%emt 0:04:38]} 15. Be3 {[%emt 0:03:11]} Rxc3 {[%emt 0:12:30]} 16. Rd1 {[%emt 0:01:32]} Qa5 {[%emt 0:13:09]} 17. Bd2 {[%emt 0:00:21]} Nd5 {[%emt 0:00:22]} 18. Bxc3 {[%emt 0:00:32]} Nxc3 {[%emt 0:00:22]} 19. Qd2 {[%emt 0:00:06]} Nc5 {[%emt 0:01:25]} 20. O-O {[%emt 0:04:38]} Nxd3 {[%emt 0:00:25]} 21. Qxd3 {[%emt 0:00:11]} Bb5 {[%emt 0:05:47]} 22. Qf5 {[%emt 0:06:49]} h6 {[%emt 0:02:02]} 23. Rd7 {[%emt 0:04:32]} Bxd7 {[%emt 0:00:17]} 24. Qxd7 {[%emt 0:00:04]} Rd8 {[%emt 0:04:17]} 25. Qxb7 {[%emt 0:00:54]} Qxa2 {[%emt 0:02:34]} 26. Qc7 {[%emt 0:00:24]} Ne2+ {[%emt 0:00:10]} 27. Kh1 {[%emt 0:00:03]} Re8 {[%emt 0:01:44]} 28. h3 {[%emt 0:04:23]} Nf4 {[%emt 0:01:34]} 29. Qd7 {[%emt 0:03:58]} Re6 {[%emt 0:00:16]} 30. Qd8+ {[%emt 0:00:40]} Kh7 {[%emt 0:00:21]} 31. Qd4 {[%emt 0:00:16]} Ng6 {[%emt 0:00:31]} 32. Ra1 {[%emt 0:00:36]} Qe2 {[%emt 0:04:21]} 33. Rxa7 {[%emt 0:00:44]} Nxe5 {[%emt 0:00:52]} 34. Nxe5 {[%emt 0:00:20]} Qe1+ {[%emt 0:01:44]} 35. Kh2 {[%emt 0:00:09]} Qxe5+ {[%emt 0:00:04]} 36. Qxe5 {[%emt 0:00:06]} Rxe5 {[%emt 0:00:01]} 37. Rxf7 {[%emt 0:00:03]} Ra5 {[%emt 0:00:07]} 38. Rb7 {[%emt 0:00:20]} Ra2 {[%emt 0:00:38]} 39. Kg3 {[%emt 0:00:11]} Ra3+ {[%emt 0:00:12]} 40. f3 {[%emt 0:00:07]} Ra2 {[%emt 0:00:11]} 41. h4 {[%emt 0:00:30]} Ra1 {[%emt 0:01:00]} 42. Rb4 {[%emt 0:00:45]} Ra2 {[%emt 0:00:57]} 43. Kh3 {[%emt 0:00:17]} Ra3 {[%emt 0:00:49]} 44. Kg4 {[%emt 0:00:11]} Ra2 {[%emt 0:00:52]} 45. g3 {[%emt 0:00:07]} Ra3 {[%emt 0:00:02]} 46. h5 {[%emt 0:00:13]} Ra5 {[%emt 0:00:30]} 47. f4 {[%emt 0:00:13]} Rc5 {[%emt 0:00:44]} 48. f5 {[%emt 0:01:29]} Rc6 {[%emt 0:00:27]} 49. Kf4 {[%emt 0:00:10]} Kg8 {[%emt 0:00:51]} 50. g4 {[%emt 0:00:25]} Kf7 {[%emt 0:00:54]} 51. g5 {[%emt 0:00:13]} hxg5+ {[%emt 0:00:15]} 52. Kxg5 {[%emt 0:00:03]} Kg8 {[%emt 0:01:12]} 53. Rb8+ {[%emt 0:01:08]} Kh7 {[%emt 0:00:15]} 54. Rb7 {[%emt 0:00:05]} Kg8 {[%emt 0:00:09]} 55. Rb8+ {[%emt 0:00:19]} Kh7 {[%emt 0:00:04]} 56. Rb7 {[%emt 0:00:06]} Kg8 {[%emt 0:00:05]} 57. Rb8+ {[%emt 0:00:10]} 1/2-1/2

[Event "FIDE WCCC Open-12 2024"]
[Site "Montesilvano"]
[Date "2024.11.24"]
[Round "9.22"]
[White "Chia, Yu Zhe Ashton"]
[Black "Elhusseiny, Eyad"]
[Result "1-0"]
[ECO "B87"]
[WhiteElo "2252"]
[BlackElo "2017"]
[Annotator "RC"]
[PlyCount "51"]
[EventDate "2024.11.18"]
[EventType "swiss"]
[EventCountry "ITA"]
[SourceTitle "playchess.com"]
[Source "ChessBase"]
[SourceQuality "1"]
[TimeControl "5400+30"]

1. e4 {[%emt 0:00:01]} c5 {[%emt 0:00:03]} 2. Nf3 {[%emt 0:00:03]} d6 {[%emt 0:00:05]} 3. d4 {[%emt 0:00:02]} cxd4 {[%emt 0:00:03]} 4. Nxd4 {[%emt 0:00:02]} Nf6 {[%emt 0:00:06]} 5. Nc3 {[%emt 0:00:03]} a6 {[%emt 0:00:04]} 6. Bc4 {[%emt 0:00:02]} e6 {[%emt 0:00:17]} 7. O-O {[%emt 0:00:04]} b5 {[%emt 0:01:08]} 8. Bb3 {[%emt 0:00:05]} b4 {[%emt 0:14:04]} 9. Na4 {[%emt 0:00:09]} Nxe4 {[%emt 0:05:06]} 10. f4 {[%emt 0:01:29]} Nf6 {[%emt 0:06:30]} 11. Qf3 {[%emt 0:38:31]} d5 {[%emt 0:03:14]} 12. f5 {[%emt 0:06:27]} e5 {[%emt 0:25:07]} 13. Re1 {[%emt 0:02:41]} e4 {[%emt 0:02:02]} 14. Qg3 {[%emt 0:01:57]} g6 {[%emt 0:09:53]} 15. Bg5 {[%emt 0:04:12]} Bd6 {[%emt 0:01:17]} 16. Qh4 {[%emt 0:01:54]} Be5 {[%emt 0:00:06]} 17. Nf3 {[%emt 0:00:49]} Qd6 {[%emt 0:07:24]} 18. Nxe5 {[%emt 0:00:21]} Nh5 {[%emt 0:00:07]} 19. Rad1 {[%emt 0:02:28]} f6 {[%emt 0:01:33]} 20. Rxd5 {[%emt 0:01:09]} fxg5 {[%emt 0:01:09]} 21. Qxe4 {[%emt 0:00:08]} Qe7 {[%emt 0:01:10]} 22. Nxg6 {[%emt 0:00:46]} Qxe4 {[%emt 0:00:23]} 23. Rxe4+ {[%emt 0:00:01]} Kf7 {[%emt 0:00:18]} 24. Rd6+ {[%emt 0:00:59]} Kg7 {[%emt 0:00:23]} 25. Re7+ {[%emt 0:00:17]} Kh6 {[%emt 0:00:24]} 26. Nf4+ {[%emt 0:00:14]} 1-0

[Event "FIDE WCCC Open-12 2024"]
[Site "Montesilvano"]
[Date "2024.11.24"]
[Round "9.23"]
[White "Tatvidze, Davit"]
[Black "Kozhedub, Ivan"]
[Result "1-0"]
[ECO "B38"]
[WhiteElo "2024"]
[BlackElo "1826"]
[Annotator "NA RC"]
[PlyCount "82"]
[EventDate "2024.11.18"]
[EventType "swiss"]
[EventCountry "ITA"]
[SourceTitle "playchess.com"]
[Source "ChessBase"]
[SourceQuality "1"]
[TimeControl "5400+30"]

1. e4 {[%emt 0:00:03]} c5 {[%emt 0:00:08]} 2. Nf3 {[%emt 0:00:08]} g6 {[%emt 0:00:06]} 3. c4 {[%emt 0:01:02]} Nc6 {[%emt 0:00:54]} 4. d4 {[%emt 0:00:22]} cxd4 {[%emt 0:00:18]} 5. Nxd4 {[%emt 0:00:02]} Nf6 {[%emt 0:00:46]} 6. Nc3 {[%emt 0:00:25]} Bg7 {[%emt 0:00:07]} 7. Be3 {[%emt 0:00:21]} O-O {[%emt 0:01:03]} 8. Be2 {[%emt 0:00:22]} Nxd4 {[%emt 0:01:07]} 9. Bxd4 {[%emt 0:00:12]} d6 {[%emt 0:00:45]} 10. O-O {[%emt 0:00:51]} Be6 {[%emt 0:00:15]} 11. Rc1 {[%emt 0:01:37]} Qa5 {[%emt 0:01:15]} 12. Kh1 {[%emt 0:02:54]} Rfc8 {[%emt 0:01:43]} 13. b3 {[%emt 0:03:34]} a6 {[%emt 0:04:36]} 14. f4 {[%emt 0:03:43]} Bd7 {[%emt 0:18:05]} 15. e5 {[%emt 0:06:15]} dxe5 {[%emt 0:03:51]} 16. fxe5 {[%emt 0:00:09]} Ne8 {[%emt 0:05:28]} 17. Nd5 {[%emt 0:00:15]} Qa3 {[%emt 0:00:29]} 18. Nb6 {[%emt 0:01:07]} Bf5 {[%emt 0:07:12]} 19. Bg4 {[%emt 0:04:57]} Bxg4 {[%emt 0:07:21]} 20. Qxg4 {[%emt 0:00:18]} e6 {[%emt 0:00:06]} 21. c5 {[%emt 0:04:56]} Rab8 {[%emt 0:01:11]} 22. Nxc8 {[%emt 0:01:47]} Rxc8 {[%emt 0:00:07]} 23. Qf3 {[%emt 0:00:05]} Rc7 {[%emt 0:00:06]} 24. c6 {[%emt 0:00:19]} bxc6 {[%emt 0:11:25]} 25. Bb6 {[%emt 0:01:48]} Rd7 {[%emt 0:03:08]} 26. Rxc6 {[%emt 0:09:25]} Qe7 {[%emt 0:02:16]} 27. Bc5 {[%emt 0:00:29]} Qd8 {[%emt 0:01:38]} 28. Rxa6 {[%emt 0:01:07]} Bxe5 {[%emt 0:00:39]} 29. Ra8 {[%emt 0:01:05]} Bb8 {[%emt 0:00:07]} 30. Ba7 {[%emt 0:00:24]} Rxa7 {[%emt 0:03:03]} 31. Rxa7 {[%emt 0:00:07]} f5 {[%emt 0:00:47]} 32. Rb7 {[%emt 0:04:34]} Qd6 {[%emt 0:02:48]} 33. g3 {[%emt 0:01:28]} Bc7 {[%emt 0:03:47]} 34. Rd1 {[%emt 0:04:23]} Qe5 {[%emt 0:01:24]} 35. Rc1 {[%emt 0:22:41]} Bd6 {[%emt 0:09:49]} 36. a4 {[%emt 0:18:53]} Nf6 {[%emt 0:04:19]} 37. Ra7 {[%emt 0:03:03]} Ne4 {[%emt 0:00:56]} 38. Qf4 {[%emt 0:02:07]} Nxg3+ {[%emt 0:05:13]} 39. Qxg3 {[%emt 0:00:35]} f4 {[%emt 0:00:18]} 40. Qf3 {[%emt 0:00:23]} Bc5 {[%emt 0:00:40]} 41. Qa8+ {[%emt 0:00:11]} Bf8 {[%emt 0:00:01]} 1-0

[Event "FIDE WCCC Open-12 2024"]
[Site "Montesilvano"]
[Date "2024.11.24"]
[Round "9.24"]
[White "Matejka, Simon"]
[Black "Ritzerveld, Noah"]
[Result "1/2-1/2"]
[ECO "C47"]
[WhiteElo "1924"]
[BlackElo "2285"]
[Annotator "RC"]
[PlyCount "80"]
[EventDate "2024.11.18"]
[EventType "swiss"]
[EventCountry "ITA"]
[SourceTitle "playchess.com"]
[Source "ChessBase"]
[SourceQuality "1"]
[TimeControl "5400+30"]

1. e4 {[%emt 0:00:10]} e5 {[%emt 0:00:04]} 2. Nf3 {[%emt 0:00:10]} Nc6 {[%emt 0:00:04]} 3. Nc3 {[%emt 0:00:25]} Nf6 {[%emt 0:00:05]} 4. d4 {[%emt 0:00:25]} exd4 {[%emt 0:00:05]} 5. Nxd4 {[%emt 0:00:08]} Bb4 {[%emt 0:00:05]} 6. Nxc6 {[%emt 0:00:10]} bxc6 {[%emt 0:00:05]} 7. Bd3 {[%emt 0:00:12]} O-O {[%emt 0:00:12]} 8. O-O {[%emt 0:00:16]} d5 {[%emt 0:00:24]} 9. Bd2 {[%emt 0:01:47]} Rb8 {[%emt 0:01:19]} 10. Re1 {[%emt 0:02:10]} Re8 {[%emt 0:07:22]} 11. exd5 {[%emt 0:01:37]} cxd5 {[%emt 0:03:57]} 12. Rxe8+ {[%emt 0:02:01]} Qxe8 {[%emt 0:02:00]} 13. Qf3 {[%emt 0:06:02]} Bg4 {[%emt 0:06:18]} 14. Qg3 {[%emt 0:03:51]} Bd6 {[%emt 0:03:16]} 15. Qh4 {[%emt 0:01:56]} Qe5 {[%emt 0:06:23]} 16. Re1 {[%emt 0:03:10]} Qh5 {[%emt 0:03:25]} 17. Qxh5 {[%emt 0:00:31]} Bxh5 {[%emt 0:02:53]} 18. b3 {[%emt 0:05:59]} c6 {[%emt 0:01:36]} 19. Ne2 {[%emt 0:04:26]} Bg6 {[%emt 0:03:39]} 20. Bxg6 {[%emt 0:01:59]} hxg6 {[%emt 0:00:16]} 21. Bf4 {[%emt 0:03:35]} Bxf4 {[%emt 0:02:53]} 22. Nxf4 {[%emt 0:00:10]} Kf8 {[%emt 0:00:17]} 23. f3 {[%emt 0:00:57]} Nd7 {[%emt 0:02:08]} 24. Nd3 {[%emt 0:01:57]} Re8 {[%emt 0:02:17]} 25. Rxe8+ {[%emt 0:00:42]} Kxe8 {[%emt 0:00:04]} 26. c3 {[%emt 0:00:57]} Ke7 {[%emt 0:01:06]} 27. Kf2 {[%emt 0:00:31]} Kd6 {[%emt 0:01:22]} 28. Ke3 {[%emt 0:00:27]} g5 {[%emt 0:00:51]} 29. g3 {[%emt 0:03:56]} f6 {[%emt 0:07:43]} 30. f4 {[%emt 0:03:55]} gxf4+ {[%emt 0:02:41]} 31. Nxf4 {[%emt 0:02:36]} Ne5 {[%emt 0:01:31]} 32. h3 {[%emt 0:00:49]} Nf7 {[%emt 0:04:18]} 33. Nh5 {[%emt 0:06:18]} Ng5 {[%emt 0:02:11]} 34. Nxg7 {[%emt 0:03:04]} Nxh3 {[%emt 0:01:12]} 35. Nf5+ {[%emt 0:01:54]} Kd7 {[%emt 0:03:49]} 36. c4 {[%emt 0:02:08]} Ng5 {[%emt 0:07:35]} 37. cxd5 {[%emt 0:00:48]} cxd5 {[%emt 0:00:28]} 38. Kd4 {[%emt 0:02:26]} Ke6 {[%emt 0:04:33]} 39. Ng7+ {[%emt 0:00:47]} Kf7 {[%emt 0:01:45]} 40. Nf5 {[%emt 0:00:41]} Ke6 {[%emt 0:00:08]} 1/2-1/2

[Event "FIDE WCCC Open-12 2024"]
[Site "Montesilvano"]
[Date "2024.11.24"]
[Round "9.25"]
[White "Rueda Ahumada, Gabriel Omar"]
[Black "Filindash, Nikita"]
[Result "1/2-1/2"]
[ECO "D46"]
[WhiteElo "1928"]
[BlackElo "2076"]
[Annotator "NA RC"]
[PlyCount "72"]
[EventDate "2024.11.18"]
[EventType "swiss"]
[EventCountry "ITA"]
[SourceTitle "playchess.com"]
[Source "ChessBase"]
[SourceQuality "1"]
[TimeControl "5400+30"]

1. d4 {[%emt 0:00:12]} d5 {[%emt 0:00:06]} 2. c4 {[%emt 0:00:31]} e6 {[%emt 0:00:01]} 3. Nf3 {[%emt 0:00:51]} Nf6 {[%emt 0:00:33]} 4. e3 {[%emt 0:00:53]} c6 {[%emt 0:00:31]} 5. Nbd2 {[%emt 0:02:03]} Nbd7 {[%emt 0:00:37]} 6. Bd3 {[%emt 1:29:00]} Bd6 {[%emt 0:02:10]} 7. O-O {[%emt 0:00:00]} O-O {[%emt 0:00:43]} 8. e4 {[%emt 0:00:00]} dxe4 {[%emt 0:08:34]} 9. Nxe4 {[%emt 0:00:00]} Nxe4 {[%emt 0:00:08]} 10. Bxe4 {[%emt 0:00:00]} e5 {[%emt 0:08:56]} 11. dxe5 {[%emt 0:00:00]} Nxe5 {[%emt 0:00:02]} 12. Nxe5 {[%emt 0:00:00]} Bxe5 {[%emt 0:00:01]} 13. Bxh7+ {[%emt 0:00:00]} Kxh7 {[%emt 0:00:13]} 14. Qh5+ {[%emt 0:00:00]} Kg8 {[%emt 0:00:06]} 15. Qxe5 {[%emt 0:00:00]} Re8 {[%emt 0:02:17]} 16. Qc3 {[%emt 0:00:00]} Bf5 {[%emt 0:02:38]} 17. Be3 {[%emt 0:00:00]} Qh4 {[%emt 0:16:10]} 18. Rad1 {[%emt 0:00:00]} Re4 {[%emt 0:15:29]} 19. Rd4 {[%emt 0:00:00]} Rae8 {[%emt 0:01:16]} 20. b3 {[%emt 0:00:00]} b6 {[%emt 0:09:15]} 21. Rfd1 {[%emt 0:00:00]} Qh5 {[%emt 0:13:35]} 22. Qd2 {[%emt 0:00:00]} c5 {[%emt 0:07:11]} 23. Rxe4 {[%emt 0:00:00]} Bxe4 {[%emt 0:00:23]} 24. Bf4 {[%emt 0:00:00]} Bc6 {[%emt 0:00:51]} 25. f3 {[%emt 0:00:00]} Qg6 {[%emt 0:05:04]} 26. Bg3 {[%emt 0:00:00]} Re6 {[%emt 0:01:49]} 27. Kf2 {[%emt 0:04:18]} a6 {[%emt 0:02:16]} 28. Re1 {[%emt 0:02:44]} Rxe1 {[%emt 0:00:36]} 29. Kxe1 {[%emt 0:00:01]} b5 {[%emt 0:01:28]} 30. Kf2 {[%emt 0:00:59]} bxc4 {[%emt 0:00:56]} 31. bxc4 {[%emt 0:00:01]} Qf5 {[%emt 0:00:41]} 32. h3 {[%emt 0:02:11]} Bd7 {[%emt 0:00:53]} 33. Qd5 {[%emt 0:02:06]} Qc2+ {[%emt 0:00:24]} 34. Kg1 {[%emt 0:00:04]} Be6 {[%emt 0:00:22]} 35. Qd8+ {[%emt 0:01:23]} Kh7 {[%emt 0:00:02]} 36. Qh4+ {[%emt 0:00:05]} Kg8 {[%emt 0:00:09]} 1/2-1/2

[Event "FIDE WCCC Open-12 2024"]
[Site "Montesilvano"]
[Date "2024.11.24"]
[Round "9.26"]
[White "Bocquenet-Drouode, Hugo"]
[Black "Wang, Zihao(Sh)"]
[Result "1/2-1/2"]
[ECO "B40"]
[WhiteElo "2002"]
[BlackElo "1838"]
[Annotator "RC"]
[PlyCount "150"]
[EventDate "2024.11.18"]
[EventType "swiss"]
[EventCountry "ITA"]
[SourceTitle "playchess.com"]
[Source "ChessBase"]
[SourceQuality "1"]
[TimeControl "5400+30"]

1. e4 {[%emt 0:00:02]} c5 {[%emt 0:00:17]} 2. Nf3 {[%emt 0:00:06]} e6 {[%emt 0:00:13]} 3. b3 {[%emt 0:00:05]} b6 {[%emt 0:00:46]} 4. Bb2 {[%emt 0:00:27]} Bb7 {[%emt 0:00:06]} 5. Qe2 {[%emt 0:01:49]} d6 {[%emt 0:01:32]} 6. c4 {[%emt 0:04:48]} Nf6 {[%emt 0:00:33]} 7. Nc3 {[%emt 0:00:22]} Nc6 {[%emt 0:00:31]} 8. d3 {[%emt 0:01:00]} Be7 {[%emt 0:04:20]} 9. g3 {[%emt 0:05:37]} Nd7 {[%emt 0:01:24]} 10. Bg2 {[%emt 0:08:01]} Nde5 {[%emt 0:02:39]} 11. O-O {[%emt 0:02:36]} O-O {[%emt 0:03:32]} 12. Rad1 {[%emt 0:10:57]} Nxf3+ {[%emt 0:04:36]} 13. Qxf3 {[%emt 0:00:14]} Bf6 {[%emt 0:02:18]} 14. Qe2 {[%emt 0:03:31]} a6 {[%emt 0:02:30]} 15. Ra1 {[%emt 0:10:08]} Bd4 {[%emt 0:06:01]} 16. Nd1 {[%emt 0:05:01]} b5 {[%emt 0:03:43]} 17. Bxd4 {[%emt 0:02:20]} Nxd4 {[%emt 0:01:26]} 18. Qd2 {[%emt 0:01:15]} Qf6 {[%emt 0:04:43]} 19. Ne3 {[%emt 0:03:20]} b4 {[%emt 0:07:58]} 20. f4 {[%emt 0:03:53]} Rfb8 {[%emt 0:02:37]} 21. Rae1 {[%emt 0:07:51]} a5 {[%emt 0:03:40]} 22. e5 {[%emt 0:17:40]} Qd8 {[%emt 0:05:55]} 23. Bxb7 {[%emt 0:02:44]} Rxb7 {[%emt 0:00:13]} 24. f5 {[%emt 0:03:12]} dxe5 {[%emt 0:03:33]} 25. f6 {[%emt 0:00:11]} e4 {[%emt 0:08:35]} 26. Ng4 {[%emt 0:02:56]} Nf3+ {[%emt 0:00:56]} 27. Rxf3 {[%emt 0:00:05]} exf3 {[%emt 0:00:04]} 28. Qg5 {[%emt 0:00:12]} g6 {[%emt 0:01:42]} 29. Re3 {[%emt 0:02:22]} h5 {[%emt 0:04:02]} 30. Ne5 {[%emt 0:00:44]} Kh7 {[%emt 0:00:48]} 31. g4 {[%emt 0:00:16]} Qf8 {[%emt 0:02:02]} 32. Rxf3 {[%emt 0:00:11]} Qh6 {[%emt 0:00:15]} 33. h4 {[%emt 0:02:06]} Qxg5 {[%emt 0:13:24]} 34. hxg5 {[%emt 0:00:05]} hxg4 {[%emt 0:01:19]} 35. Nxg4 {[%emt 0:00:08]} Rba7 {[%emt 0:01:27]} 36. Nh6 {[%emt 0:00:34]} Rc8 {[%emt 0:04:26]} 37. Rh3 {[%emt 0:00:05]} Rcc7 {[%emt 0:00:13]} 38. Nxf7+ {[%emt 0:00:44]} Kg8 {[%emt 0:00:07]} 39. Ne5 {[%emt 0:00:05]} Rh7 {[%emt 0:00:53]} 40. Rf3 {[%emt 0:00:22]} Raf7 {[%emt 0:02:47]} 41. Nxg6 {[%emt 0:00:22]} Rh5 {[%emt 0:00:33]} 42. Ne7+ {[%emt 0:00:06]} Kf8 {[%emt 0:00:46]} 43. Rg3 {[%emt 0:00:30]} Rxe7 {[%emt 0:00:57]} 44. fxe7+ {[%emt 0:00:05]} Kxe7 {[%emt 0:00:00]} 45. g6 {[%emt 0:00:44]} Kf8 {[%emt 0:01:32]} 46. Rg2 {[%emt 0:00:31]} Kg7 {[%emt 0:00:33]} 47. Kf2 {[%emt 0:00:05]} Rh3 {[%emt 0:00:08]} 48. Ke2 {[%emt 0:00:11]} e5 {[%emt 0:00:11]} 49. Rg5 {[%emt 0:00:36]} Rh2+ {[%emt 0:00:36]} 50. Ke3 {[%emt 0:00:06]} Rxa2 {[%emt 0:00:32]} 51. Rxe5 {[%emt 0:00:04]} Kxg6 {[%emt 0:01:08]} 52. Rxc5 {[%emt 0:00:04]} Kf6 {[%emt 0:00:19]} 53. Kd4 {[%emt 0:02:04]} Ke6 {[%emt 0:00:32]} 54. Rc6+ {[%emt 0:01:16]} Kd7 {[%emt 0:00:04]} 55. Ra6 {[%emt 0:00:12]} Ra3 {[%emt 0:00:26]} 56. c5 {[%emt 0:00:37]} Rxb3 {[%emt 0:00:50]} 57. Rxa5 {[%emt 0:00:08]} Kc6 {[%emt 0:00:24]} 58. Ra6+ {[%emt 0:00:17]} Kb5 {[%emt 0:00:44]} 59. Rb6+ {[%emt 0:00:06]} Ka5 {[%emt 0:00:02]} 60. Rb8 {[%emt 0:00:13]} Rc3 {[%emt 0:00:21]} 61. Rb7 {[%emt 0:01:40]} Ka4 {[%emt 0:00:20]} 62. Rh7 {[%emt 0:02:19]} Kb5 {[%emt 0:00:27]} 63. Rh8 {[%emt 0:00:46]} Ka4 {[%emt 0:00:52]} 64. Rb8 {[%emt 0:00:46]} Ka5 {[%emt 0:01:03]} 65. Kd5 {[%emt 0:00:27]} Rxd3+ {[%emt 0:00:05]} 66. Kc6 {[%emt 0:00:06]} b3 {[%emt 0:00:50]} 67. Kc7 {[%emt 0:00:09]} Ka4 {[%emt 0:00:33]} 68. c6 {[%emt 0:00:14]} Rc3 {[%emt 0:00:23]} 69. Kd7 {[%emt 0:00:13]} Ka3 {[%emt 0:00:21]} 70. c7 {[%emt 0:00:14]} Rxc7+ {[%emt 0:00:38]} 71. Kxc7 {[%emt 0:00:06]} b2 {[%emt 0:00:04]} 72. Ra8+ {[%emt 0:00:09]} Kb3 {[%emt 0:00:04]} 73. Rb8+ {[%emt 0:00:05]} Kc2 {[%emt 0:00:03]} 74. Kd6 {[%emt 0:00:05]} b1=Q {[%emt 0:00:06]} 75. Rxb1 {[%emt 0:00:04]} Kxb1 {[%emt 0:00:03]} 1/2-1/2

[Event "FIDE WCCC Open-12 2024"]
[Site "Montesilvano"]
[Date "2024.11.24"]
[Round "9.27"]
[White "Belyaletdinov, Leonard"]
[Black "Nguyen, Anh Khoi"]
[Result "0-1"]
[ECO "C01"]
[WhiteElo "1903"]
[BlackElo "2520"]
[Annotator "RC"]
[PlyCount "122"]
[EventDate "2024.11.18"]
[EventType "swiss"]
[EventCountry "ITA"]
[SourceTitle "playchess.com"]
[Source "ChessBase"]
[SourceQuality "1"]
[TimeControl "5400+30"]

1. e4 {[%emt 0:00:05]} e6 {[%emt 0:00:06]} 2. d4 {[%emt 0:00:04]} d5 {[%emt 0:00:09]} 3. exd5 {[%emt 0:00:04]} exd5 {[%emt 0:00:07]} 4. Nf3 {[%emt 0:00:05]} Nf6 {[%emt 0:00:13]} 5. h3 {[%emt 0:00:04]} c5 {[%emt 0:03:01]} 6. Bb5+ {[%emt 0:00:08]} Nc6 {[%emt 0:13:48]} 7. O-O {[%emt 0:03:38]} Be7 {[%emt 0:01:39]} 8. Nc3 {[%emt 0:14:39]} a6 {[%emt 0:08:51]} 9. Bxc6+ {[%emt 0:00:39]} bxc6 {[%emt 0:02:11]} 10. dxc5 {[%emt 0:03:43]} Bxc5 {[%emt 0:02:34]} 11. Re1+ {[%emt 0:00:46]} Be7 {[%emt 0:11:28]} 12. Qe2 {[%emt 0:07:02]} Be6 {[%emt 0:02:32]} 13. Nd4 {[%emt 0:03:09]} Bd7 {[%emt 0:01:52]} 14. Bf4 {[%emt 0:02:15]} Kf8 {[%emt 0:03:54]} 15. Qe5 {[%emt 0:07:04]} h6 {[%emt 0:03:52]} 16. Re2 {[%emt 0:05:36]} c5 {[%emt 0:01:15]} 17. Nf5 {[%emt 0:16:57]} Bxf5 {[%emt 0:00:12]} 18. Qxf5 {[%emt 0:00:09]} Ra7 {[%emt 0:02:17]} 19. Rae1 {[%emt 0:02:26]} g6 {[%emt 0:11:37]} 20. Qe5 {[%emt 0:00:24]} Kg7 {[%emt 0:00:20]} 21. Rd2 {[%emt 0:02:44]} Rd7 {[%emt 0:00:24]} 22. Ne2 {[%emt 0:09:31]} Kh7 {[%emt 0:09:05]} 23. Qe3 {[%emt 0:06:28]} Re8 {[%emt 0:00:59]} 24. Qf3 {[%emt 0:00:37]} Ne4 {[%emt 0:01:18]} 25. Rdd1 {[%emt 0:01:52]} Bf6 {[%emt 0:00:10]} 26. Ng3 {[%emt 0:02:29]} Bxb2 {[%emt 0:08:58]} 27. Rb1 {[%emt 0:00:42]} Bd4 {[%emt 0:01:27]} 28. Nxe4 {[%emt 0:00:35]} dxe4 {[%emt 0:00:40]} 29. Rxe4 {[%emt 0:01:02]} Rxe4 {[%emt 0:04:09]} 30. Qxe4 {[%emt 0:00:14]} Qf6 {[%emt 0:00:26]} 31. Re1 {[%emt 0:03:25]} Bxf2+ {[%emt 0:02:10]} 32. Kxf2 {[%emt 0:00:08]} Rd4 {[%emt 0:00:01]} 33. Qe8 {[%emt 0:01:25]} Rxf4+ {[%emt 0:01:50]} 34. Kg1 {[%emt 0:00:06]} Qd4+ {[%emt 0:01:14]} 35. Kh1 {[%emt 0:02:03]} Rf2 {[%emt 0:00:56]} 36. Qa8 {[%emt 0:02:16]} Rxc2 {[%emt 0:01:14]} 37. Qxa6 {[%emt 0:01:00]} Qf2 {[%emt 0:00:07]} 38. Qf1 {[%emt 0:00:58]} Rxa2 {[%emt 0:00:06]} 39. Kh2 {[%emt 0:01:38]} Kg7 {[%emt 0:00:31]} 40. Qxf2 {[%emt 0:00:57]} Rxf2 {[%emt 0:00:03]} 41. Kg3 {[%emt 0:00:19]} Rf5 {[%emt 0:00:14]} 42. Re7 {[%emt 0:00:15]} Kf6 {[%emt 0:00:25]} 43. Rc7 {[%emt 0:00:11]} h5 {[%emt 0:00:17]} 44. Kh4 {[%emt 0:00:08]} Ke6 {[%emt 0:01:03]} 45. g4 {[%emt 0:00:10]} Re5 {[%emt 0:01:10]} 46. Rc6+ {[%emt 0:00:21]} Ke7 {[%emt 0:01:04]} 47. Rc7+ {[%emt 0:00:06]} Kf6 {[%emt 0:00:17]} 48. Rc6+ {[%emt 0:00:14]} Kg7 {[%emt 0:00:06]} 49. Rc7 {[%emt 0:00:09]} Rd5 {[%emt 0:00:44]} 50. Rb7 {[%emt 0:00:38]} hxg4 {[%emt 0:01:22]} 51. hxg4 {[%emt 0:00:04]} Kf6 {[%emt 0:00:22]} 52. Rc7 {[%emt 0:00:13]} Ke6 {[%emt 0:00:20]} 53. Rc6+ {[%emt 0:00:08]} Ke7 {[%emt 0:01:09]} 54. Rc7+ {[%emt 0:00:05]} Ke6 {[%emt 0:00:22]} 55. Rc6+ {[%emt 0:00:06]} Ke5 {[%emt 0:00:36]} 56. Kg5 {[%emt 0:00:43]} Kd4+ {[%emt 0:00:09]} 57. Kf6 {[%emt 0:00:05]} Rd7 {[%emt 0:00:08]} 58. Rc8 {[%emt 0:00:15]} c4 {[%emt 0:00:20]} 59. Rf8 {[%emt 0:00:10]} c3 {[%emt 0:00:06]} 60. Rxf7 {[%emt 0:00:32]} Rxf7+ {[%emt 0:00:14]} 61. Kxf7 {[%emt 0:00:06]} g5 {[%emt 0:00:12]} 0-1